Cogmind - Beta 15 @@@ ROGUE MODE // 2025.08.23 @ 02:38:30 Player: Mogwok Wargfriend Result: Destroyed by Striker with Plasma Lance Performance ------------- Evolutions (5) 2500 Regions Visited (13) 2600 Robots Destroyed (193) 965 Value Destroyed (5641) 5641 Prototype IDs (30) 600 Alien Tech Used (0) 0 Bonus (2988) 2988 TOTAL SCORE: 15294 Bonus ------- High Alert Combat Kills 170 Follower Combat Kills 1193 Registered with UFD 300 Met Optimus in HQ 500 Met Warlord at Base 500 MAIN.C Attacked Warlord 500 Friendly Fire -175 Cogmind --------- Core Integrity 0/1000 Matter 220/300 Energy 14/100 System Corruption 6% Temperature Warning (322) Movement Core (150) Ox2 Location -5/Warlord Parts ------- > --- POWER (1) -------- (None) > --- PROPULSION (5) --- (None) > --- UTILITY (9) ------ 0b10 Decoder Chip [Scout] Makeshift Salvage Targeting Computer Improved Target Analyzer Advanced System Shield > --- WEAPON (2) ------- Companion Sword Vortex Lance > --- INVENTORY (5) ---- Heavy Phase Cannon Improved Assault Rifle Great Maul Kinetic Spear Vortex Lance (40) Peak State ------------ > --- POWER ------------ Light Angular Momentum Engine > --- PROPULSION ------- Armored Medium Treads Thunder Leg Thunder Leg Thunder Leg Thunder Leg > --- UTILITY ---------- High-capacity Storage Unit 0b10 Decoder Chip [Scout] Makeshift Salvage Targeting Computer Makeshift Salvage Targeting Computer Advanced Melee Analysis Suite Improved Target Analyzer Microactuators Actuator Array Advanced System Shield > --- WEAPON ----------- Companion Sword Kinetic Spear > --- INVENTORY -------- Fusion Reactor Thunder Leg Thunder Leg Thunder Leg Compact Battery High-capacity Matter Pod Transmission Jammer Advanced Beam Rifle Heavy Phase Cannon Improved Assault Rifle Enhanced Gauss Cannon Improved Grenade Launcher Long-range Missile Launcher Great Maul Phasing Sabre Vibroblade Kinetic Spear Vortex Lance Vortex Lance Fire Trap [Rating: 95] Favorites ----------- Power Cooled Ion Engine Engine Cooled Ion Engine Power Core Neutrino Core Propulsion Wheel Treads Medium Treads Leg Thunder Leg Wheel Wheel Hover Unit Linear Gravjet Flight Unit Improved Flight Unit Utility High-capacity Storage Unit Device Improved Heat Sink Storage High-capacity Storage Unit Processor Improved Signal Interpreter Hackware Hacking Suite Protection Improved Medium Armor Plating Weapon Heavy Beamcaster Energy Gun Heavy Beamcaster Energy Cannon Advanced Beam Cannon Ballistic Gun Precision Assault Rifle Ballistic Cannon Enhanced Gauss Cannon Launcher Tiamat Missile Launcher Special Weapon Mining Laser Slashing Weapon Companion Sword Piercing Weapon Kinetic Spear Special Melee Weapon Datajack Build | -11 -10 -9 -8 -7 -7 -7 -7 -7 -7 -5 -5 -5 -5 ------- Run | Yrd Mat Mat Mat Fac Was Fac Sto Rec Scr Fac Upp Upp War Slots Evolved 10 | . . 2 2 2 . . . . . 4 . . . Power . | . . . . . . . . . . . . . . Propulsion 3 | . . 1 . . . . . . . 2 . . . Utility 7 | . . 1 2 2 . . . . . 2 . . . Weapon . | . . . . . . . . . . . . . . Parts Attached 168 | 6 5 38 35 8 2 6 2 2 3 45 2 6 8 Power 11 | 1 . 4 1 . . 1 . . . 3 . 1 . Engine 10 | 1 . 4 1 . . 1 . . . 2 . 1 . Core 1 | . . . . . . . . . . 1 . . . Reactor . | . . . . . . . . . . . . . . Propulsion 55 | 2 1 15 12 3 . 1 1 . 1 14 . 1 4 Treads 19 | 1 1 7 3 . . 1 . . . 6 . . . Leg 9 | . . . 1 . . . . . . 3 . 1 4 Wheel 19 | 1 . 7 7 1 . . . . 1 2 . . . Hover 5 | . . . . 1 . . 1 . . 3 . . . Flight 3 | . . 1 1 1 . . . . . . . . . Utility 59 | 1 2 5 13 5 . 2 1 2 1 18 2 4 3 Device 23 | . . 1 6 2 . 1 . 1 1 8 1 1 1 Storage 3 | 1 1 . 1 . . . . . . . . . . Processor 10 | . . . . 1 . . . . . 5 . 2 2 Hackware 4 | . . . 1 1 . . . . . 1 1 . . Protection 19 | . 1 4 5 1 . 1 1 1 . 4 . 1 . Artifact . | . . . . . . . . . . . . . . Weapon 43 | 2 2 14 9 . 2 2 . . 1 10 . . 1 Energy Gun 9 | 1 . 1 3 . 1 1 . . . 2 . . . Energy Cannon 6 | . . 1 2 . . . . . . 3 . . . Ballistic Gun 18 | 1 2 9 3 . 1 1 . . . 1 . . . Ballistic Cannon 1 | . . . . . . . . . . 1 . . . Launcher 2 | . . 1 . . . . . . . 1 . . . Special Weapon 1 | . . 1 . . . . . . . . . . . Impact Weapon . | . . . . . . . . . . . . . . Slashing Weapon 2 | . . . 1 . . . . . 1 . . . . Piercing Weapon 3 | . . . . . . . . . . 2 . . 1 Special Melee Weapon 1 | . . 1 . . . . . . . . . . . Unidentified Prototypes 22 | . . 4 5 2 . 2 1 . 1 6 . . 1 Parts Lost 47 | . 1 8 5 . . 1 . . . 10 1 6 15 Power 4 | . . 1 . . . . . . . 1 . 1 1 Propulsion 20 | . . 2 2 . . . . . . 5 1 1 9 Utility 18 | . . 2 3 . . 1 . . . 4 . 4 4 Weapon 5 | . 1 3 . . . . . . . . . . 1 Highest Loss Streak 13 | . 1 6 2 . . 1 . . . 4 1 3 13 To Critical Strikes 1 | . . . . . . . . . . . 1 . . Average Backups 19 | 4 17 19 19 19 20 20 20 20 20 19 19 19 18 Power 1 | . 1 1 1 1 1 1 1 1 1 . 1 1 1 Propulsion 6 | 2 7 5 5 7 7 7 7 7 6 5 6 5 3 Utility 3 | . 2 3 3 3 4 4 4 4 4 3 3 3 3 Weapon 8 | 1 6 8 8 7 7 8 8 8 8 9 9 9 11 Tool/Special . | . . . . . . . . . . . . . . Unused Backups 53 | . 7 14 13 2 2 1 . . . 2 . . 12 Power 3 | . . 1 1 . . . . . . . . . 1 Propulsion 12 | . 2 2 5 2 . . . . . 1 . . . Utility 8 | . 1 3 2 . . . . . . . . . 2 Weapon 29 | . 4 8 5 . 1 1 . . . 1 . . 9 Tool/Special 1 | . . . . . 1 . . . . . . . . Average Slot Usage (%) 98 | . 92 99 97 99 100 99 100 100 99 97 99 98 90 Engine 7 | . 14 11 9 7 7 7 7 7 7 2 5 4 4 Treads 9 | . 14 11 6 7 7 7 7 7 7 14 10 11 3 Leg 2 | . . . 2 . . . . . . 1 17 16 20 Wheel 13 | . 14 22 17 15 15 15 15 15 15 9 . . . Device 16 | . . 9 18 19 15 20 23 23 22 16 17 11 10 Storage 7 | . 14 11 9 7 7 7 7 7 7 5 5 5 5 Processor 5 | . . . . 3 7 7 7 6 . 12 11 15 25 Hackware 6 | . . . 8 14 15 9 7 7 7 6 11 10 5 Protection 8 | . 6 12 6 7 7 7 7 7 15 8 5 4 . Energy Gun 3 | . 5 1 . . 2 6 7 7 6 3 . . . Energy Cannon 2 | . . 6 8 6 4 . . . . 1 . . . Ballistic Gun 7 | . 22 12 9 7 7 7 7 7 7 3 . . . Peak Build Rating 95 | 6 9 19 34 43 47 49 53 51 51 86 88 88 95 Average Rating 45 | 5 7 14 28 41 43 47 49 50 50 69 85 86 87 On Entrance 43 | . 6 9 19 32 42 47 49 50 50 51 86 85 81 Naked Turns . | . . . . . . . . . . . . . . Heaviest Build 78 | 14 54 61 65 65 62 65 69 71 72 78 65 67 62 Greatest Support 102 | 10 10 20 26 22 22 22 22 22 24 102 69 69 92 Greatest Overweight (x) 6 | 1 5 5 6 3 2 2 3 3 3 6 . 1 2 Average Overweight (x) 2 | . 4 2 2 2 2 2 2 3 2 2 . . . Largest Inventory Capacity 20 | 8 20 20 20 20 20 20 20 20 20 20 20 20 20 Average Capacity 19 | 7 18 20 20 20 20 20 20 20 20 20 20 20 19 Most Carried 20 | 7 20 20 20 20 20 20 20 20 20 20 20 20 20 Average Carried 19 | 4 17 19 19 19 19 20 20 20 19 19 19 19 19 Final Capacity 20 | 8 20 20 20 20 20 20 20 20 20 20 20 20 5 Final Carried 20 | 7 20 20 20 20 20 20 20 20 20 20 20 20 5 Class Distribution -------------------- 54% | Mutant 20% | Scavenger-Mutant 12% | Hacker-Mutant 7% | Hacker-Gladiator 4% | Gladiator Dominant Class ---------------- Mutant | -10/Materials Scavenger-Mutant | -9/Materials Mutant | -8/Materials Hacker-Mutant | -7/Factory Hacker-Mutant | -7/Waste Mutant | -7/Factory Mutant | -7/Storage Mutant | -7/Recycling Mutant | -7/Scraptown Mutant | -5/Factory Hacker-Gladiator | -5/Upper Caves Hacker-Gladiator | -5/Upper Caves Gladiator | -5/Warlord Resources | -11 -10 -9 -8 -7 -7 -7 -7 -7 -7 -5 -5 -5 -5 ----------- Run | Yrd Mat Mat Mat Fac Was Fac Sto Rec Scr Fac Upp Upp War Matter Collected 4592 | 308 303 1394 807 113 77 150 53 103 . 936 276 67 5 Remotely . | . . . . . . . . . . . . . . Salvage Created 7883 | 184 479 2052 2052 334 . 97 . 444 . 1273 228 740 . Parts 437 | 10 44 131 120 17 . 6 . 15 . 64 6 24 . Haulers Intercepted 14 | . 2 6 6 . . . . . . . . . . Recyclers Shooed 13 | . 1 2 2 3 . 2 . 1 . 2 . . . Parts Field Recycled . | . . . . . . . . . . . . . . Retrieved Matter . | . . . . . . . . . . . . . . Parts Self-Destructed 28 | . . . . . . . . . . . 5 23 . Prevented . | . . . . . . . . . . . . . . Kills | -11 -10 -9 -8 -7 -7 -7 -7 -7 -7 -5 -5 -5 -5 ------- Run | Yrd Mat Mat Mat Fac Was Fac Sto Rec Scr Fac Upp Upp War Combat Hostiles Destroyed 110 | . 12 30 29 2 . 1 1 1 . 19 3 12 . Melee 15 | . . . . . . . . . . . 3 12 . Guns 54 | . 12 20 7 1 . 1 1 1 . 11 . . . Cannons 38 | . . 10 22 1 . . . . . 5 . . . AOE 2 | . . . . . . . . . . 2 . . . Classes Destroyed 16 | 3 5 3 2 . . . . . . 2 . 1 . Worker 19 | 2 4 9 2 1 . . . . . 1 . . . Builder 5 | . 2 1 1 . . . . . . 1 . . . Tunneler 6 | 4 1 . . 1 . . . . . . . . . Hauler 14 | . 2 6 6 . . . . . . . . . . Recycler 15 | 1 . 2 3 2 . . . 5 . 2 . . . Minesweeper 1 | . . . . . . . . . . . . 1 . Mechanic 3 | . . . 1 1 . . . . . 1 . . . Operator 4 | . . 2 1 . . . . . . 1 . . . Watcher 16 | . 1 5 5 1 . 1 . . . 3 . . . Swarmer 24 | . 9 5 6 . . . . . . . 3 1 . Grunt 46 | . 3 12 15 2 . . 1 . . 3 . 10 . Brawler 4 | . . 3 1 . . . . . . . . . . Duelist 1 | . . . 1 . . . . . . . . . . Sentry 20 | . . 10 6 . . 1 . 1 . 1 . 1 . Hunter 7 | . . . . . . . . . . 7 . . . Programmer 8 | . . . . . . . . . . 8 . . . Packrat 2 | . . . . . . . . . . . 2 . . Best Kill Streak 7 | 5 7 4 5 3 . 1 1 4 . 3 3 4 . Combat Bots Only 5 | . 5 3 4 2 . 1 1 1 . 3 3 4 . Max Kills in Single Turn 3 | 1 1 2 1 1 . 1 1 1 . 3 1 2 . Gunslinging . | . . . . . . . . . . . . . . Exploded 2 | . . . . . . . . . . 2 . . . Melee 2 | . . . . . . . . . . . 1 2 . Uniques/NPCs Destroyed . | . . . . . . . . . . . . . . Combat | -11 -10 -9 -8 -7 -7 -7 -7 -7 -7 -5 -5 -5 -5 -------- Run | Yrd Mat Mat Mat Fac Was Fac Sto Rec Scr Fac Upp Upp War Hostile Shots Fired 839 | . 69 186 159 6 . 22 3 9 . 192 38 67 88 Missed 231 | . 14 54 50 2 . 9 . 2 . 47 13 18 22 Hits 608 | . 55 132 109 4 . 13 3 7 . 145 25 49 66 Melee 10 | . . 2 4 . . . . . . . . . 4 Projectile 598 | . 55 130 105 4 . 13 3 7 . 145 25 49 62 AOE 1 | . . . . . . 1 . . . . . . . Critical Strikes 36 | . . 5 5 1 . 1 . . . 11 1 5 7 Actively Blocked 5 | . . . . . . . . . . 4 . 1 . Part Disruptions 3 | . . . . . . . . . . . . . 3 Damage Taken 9981 | . 476 1631 1273 92 . 194 68 53 . 2969 388 1062 1775 Core 1445 | . 89 156 174 . . 18 . 6 . 237 45 135 585 Absorbed by Shields 352 | . . . 352 . . . . . . . . . . Redirected to Shielding 470 | . . 11 . . . . . . . 411 . 48 . Regen/Repaired (Parts) 531 | . . . . . 34 33 . 12 . 307 . . 145 Core Remaining (%) 77 | 100 64 61 68 . . . . . 96 . . . . Volleys Fired 567 | 16 62 170 154 24 . 19 5 12 . 105 . . . Largest 2 | 2 2 2 2 2 . 2 2 2 . 2 . . . Hottest 168 | 70 70 168 91 91 . 114 109 109 . 128 . . . Shots Fired 1096 | 32 122 331 297 39 . 39 10 24 . 202 . . . Gun 800 | 32 122 258 144 15 . 39 10 24 . 156 . . . Cannon 290 | . . 67 153 24 . . . . . 46 . . . Launcher . | . . . . . . . . . . . . . . Special 6 | . . 6 . . . . . . . . . . . Kinetic 615 | 16 88 215 144 15 . 20 5 12 . 100 . . . Thermal 481 | 16 34 116 153 24 . 19 5 12 . 102 . . . Explosive . | . . . . . . . . . . . . . . Electromagnetic . | . . . . . . . . . . . . . . Robot Hit Streak 18 | 8 11 18 13 4 . 7 4 13 . 15 . . . Robot Miss Streak 7 | 2 6 6 5 3 . 4 1 3 . 7 . . . Penetration Max 1 | . . . . . . . . . . 1 . . . Secondary Targets 6 | . . 6 . . . . . . . . . . . Max Gunslinging Chain 1 | . . 1 . . . . . . . . . . . Shots Hit Robots 701 | 22 66 184 174 18 . 23 6 16 . 150 8 34 . Core Hits 324 | 8 29 79 76 11 . 9 1 7 . 80 4 20 . Critical Kills 1 | . . 1 . . . . . . . . . . . Critical Parts Destroyed 2 | . . 1 . . . . . . . 1 . . . Critical Strikes 20 | 2 3 2 . . . 2 . 1 . 9 . 1 . Burn 11 | 2 3 . . . . 2 . 1 . 3 . . . Destroy 3 | . . 2 . . . . . . . 1 . . . Blast 5 | . . . . . . . . . . 5 . . . Impale 1 | . . . . . . . . . . . . 1 . Melee Attacks 65 | . . . 1 2 . . . . . 1 14 47 . Impact . | . . . . . . . . . . . . . . Slashing 48 | . . . 1 2 . . . . . 1 11 33 . Piercing 17 | . . . . . . . . . . . 3 14 . Sneak Attacks 5 | . . . . . . . . . . . 3 2 . Combat Hostiles . | . . . . . . . . . . . . . . Follow-up Attacks 10 | . . . . . . . . . . . 1 9 . Damage Inflicted 14874 | 267 848 2773 3384 339 . 601 142 334 . 4194 456 1528 8 Guns 8055 | 267 848 1966 1337 151 . 601 142 334 . 2409 . . . Cannons 4245 | . . 807 2047 188 . . . . . 1203 . . . Explosions 582 | . . . . . . . . . . 582 . . . Melee 1984 | . . . . . . . . . . . 456 1528 . Ramming 8 | . . . . . . . . . . . . . 8 Kinetic 6053 | 107 625 1585 1337 151 . 369 74 149 . 1656 . . . Thermal 6829 | 160 223 1188 2047 188 . 232 68 185 . 2538 . . . Explosive . | . . . . . . . . . . . . . . Electromagnetic . | . . . . . . . . . . . . . . Impact . | . . . . . . . . . . . . . . Slashing 1568 | . . . . . . . . . . . 424 1144 . Piercing 416 | . . . . . . . . . . . 32 384 . Highest Corruption 17 | . . . . 1 1 1 1 1 . 17 17 11 12 Average Corruption 6 | . . . . 1 1 1 1 1 . 11 11 9 9 Corruption Purged 9 | . . . . . . . . 1 . . 8 . . Corruption Blocked . | . . . . . . . . . . . . . . Effects 141 | . . . . 3 1 11 2 6 . 76 21 19 2 Message Errors 37 | . . . . . . 2 . 1 . 20 8 5 1 Matter Fused 38 | . . . . 1 . 5 1 1 . 19 7 4 . Heat Flow Errors 14 | . . . . . . . . 3 . 5 1 4 1 Energy Discharges 16 | . . . . 2 . 1 1 . . 8 2 2 . Parts Rejected 1 | . . . . . . . . . . . . 1 . Parts Fused 1 | . . . . . . . . . . . 1 . . Data Loss (minor) 19 | . . . . . 1 2 . . . 12 2 2 . Data Loss (major) 5 | . . . . . . . . 1 . 3 . 1 . Misfires 4 | . . . . . . 1 . . . 3 . . . Alerts 1 | . . . . . . . . . . 1 . . . Misdirections 1 | . . . . . . . . . . 1 . . . Weapon Failures 4 | . . . . . . . . . . 4 . . . Overload Shots . | . . . . . . . . . . . . . . Overflow Damage 319 | . . 20 15 1 . . . . . 134 78 71 . Projectiles 137 | . . 20 15 1 . . . . . 101 . . . Explosions 33 | . . . . . . . . . . 33 . . . Melee 149 | . . . . . . . . . . . 78 71 . Knockbacks 5 | . . . . . . . . . . 5 . . . Impact . | . . . . . . . . . . . . . . Kinetic 5 | . . . . . . . . . . 5 . . . Secondary . | . . . . . . . . . . . . . . Self-Inflicted Damage 160 | . . . . . . . . . . 160 . . . Shots 4 | . . . . . . . . . . 4 . . . Rammed . | . . . . . . . . . . . . . . Targets Rammed 1 | . . . . . . . . . . . . . 1 Kicked 1 | . . . . . . . . . . . . . 1 Crushed . | . . . . . . . . . . . . . . Highest Temperature 315 | 90 66 208 20 66 . 81 6 248 . 315 135 254 295 Average Temperature 32 | 33 21 24 5 18 . 30 5 79 . 64 86 102 124 Received Heat Transfer 2805 | . 84 573 609 54 . 45 27 12 . 285 12 318 786 Siege Activations . | . . . . . . . . . . . . . . Martial Activations . | . . . . . . . . . . . . . . Shielding Activations . | . . . . . . . . . . . . . . Robots Disrupted 1 | . . . . . . . . . . . . 1 . Combat Hostiles 1 | . . . . . . . . . . . . 1 . Robots Corrupted . | . . . . . . . . . . . . . . Combat Hostiles . | . . . . . . . . . . . . . . Parts Fried . | . . . . . . . . . . . . . . Impact Corruptions . | . . . . . . . . . . . . . . Robots Melted 1 | . . . . . . . . . . 1 . . . Combat Hostiles 1 | . . . . . . . . . . 1 . . . Parts Melted 6 | 1 1 2 . . . . . . . 2 . . . Heat Transferred 11796 | 629 888 2368 3626 333 . 518 111 370 . 2953 . . . Parts Sabotaged 6 | . . . . . . . . . . . . . 6 Parts Stolen . | . . . . . . . . . . . . . . Parts Stripped . | . . . . . . . . . . . . . . Power Chain Reactions 1 | . . . . . . . . . . 1 . . . Alert | -11 -10 -9 -8 -7 -7 -7 -7 -7 -7 -5 -5 -5 -5 ------- Run | Yrd Mat Mat Mat Fac Was Fac Sto Rec Scr Fac Upp Upp War Maximum Alert Level 4 | . . 2 2 . . 4 3 1 . 2 . . . Low Security (%) 51 | 100 100 45 21 100 100 26 . 37 . 69 . . . Level 1 25 | . . 34 46 . . 37 . 62 . 3 . . . Level 2 17 | . . 20 31 . . 8 24 . . 27 . . . Level 3 4 | . . . . . . 20 75 . . . . . . Level 4 . | . . . . . . 6 . . . . . . . Level 5 . | . . . . . . . . . . . . . . High Security . | . . . . . . . . . . . . . . Max Security . | . . . . . . . . . . . . . . Peak Influence 1275 | 15 131 430 492 112 . 1275 932 347 . 506 . . . Initial 596 | . 3 . 161 112 . . 596 347 . . . . . Average 233 | 3 44 242 316 24 . 426 840 224 . 152 . . . Influence Increases 6803 | 35 392 1068 1104 152 . 1876 416 213 . 1182 70 265 30 Destroy 0b10 Robot/C 2920 | . 240 600 580 40 . 500 100 60 . 500 60 240 . Destroy 0b10 Robot/NC 500 | 35 50 125 95 30 . 70 20 25 . 45 . 5 . Destroy Leader 720 | . 46 202 162 2 . 118 34 . . 126 10 20 . Allied During Kill 872 | . . . . . . 678 112 52 . 30 . . . Trap Triggered on 0b10 30 | . . 30 . . . . . . . . . . . Successful Hack 410 | . 39 28 47 33 . 81 28 59 . 95 . . . Disable Machine 570 | . . 30 75 45 . 180 30 . . 210 . . . Destroy Structure 496 | . 2 8 10 2 . 249 92 17 . 116 . . . Partial Spotted 15 | . . . . . . . . . . 15 . . . Lose Combat Pursuer 270 | . 15 45 135 . . . . . . 45 . . 30 Influence Decreases 6788 | 30 397 684 1241 399 . 565 835 1025 80 691 479 347 15 Entered New Map 1900 | . 2 . 223 135 . . 715 545 80 . 183 17 . Time Decay 4065 | 30 385 604 668 264 . 455 120 440 . 535 286 278 . Lost Part 307 | . 10 80 50 . . 10 . . . 80 10 52 15 Lost Ally 216 | . . . . . . 100 . 40 . 76 . . . Purge Threat 300 | . . . 300 . . . . . . . . . . Squads Dispatched 22 | . 1 2 4 2 . 4 1 . . 8 . . . Investigation 2 | . . . 1 . . . 1 . . . . . . Extermination 8 | . . . . 1 . 3 . . . 4 . . . Reinforcement 9 | . 1 2 3 1 . . . . . 2 . . . Assault 3 | . . . . . . 1 . . . 2 . . . Garrison . | . . . . . . . . . . . . . . Intercept . | . . . . . . . . . . . . . . Searches Triggered . | . . . . . . . . . . . . . . Construction Impeded 2 | . . . 2 . . . . . . . . . . Haulers Reinforced 1 | . . . . 1 . . . . . . . . . Active Scanning Responses . | . . . . . . . . . . . . . . Cargo Convoy Interrupts . | . . . . . . . . . . . . . . Stealth | -11 -10 -9 -8 -7 -7 -7 -7 -7 -7 -5 -5 -5 -5 --------- Run | Yrd Mat Mat Mat Fac Was Fac Sto Rec Scr Fac Upp Upp War Distress Signals 20 | . 1 4 8 . . 2 1 . . 4 . . . Communications Jammed 105 | . . . . . . 14 . 1 . 90 . . . Distress Signals 105 | . . . . . . 14 . 1 . 90 . . . Times Spotted 227 | . 23 46 52 5 . 26 6 1 . 38 5 13 12 Peak Tracking Total 11 | . 5 6 5 2 . 5 2 . . 6 4 5 11 Tactical Retreats 13 | . 1 3 7 . . . . . . 1 . . 1 Traps | -11 -10 -9 -8 -7 -7 -7 -7 -7 -7 -5 -5 -5 -5 ------- Run | Yrd Mat Mat Mat Fac Was Fac Sto Rec Scr Fac Upp Upp War Traps Triggered 13 | . . . 1 3 . 1 . . . 6 . 1 1 Indirectly . | . . . . . . . . . . . . . . Trap Hack Attempts 84 | . . 84 . . . . . . . . . . . Triggered . | . . . . . . . . . . . . . . Disarmed 4 | . . 4 . . . . . . . . . . . Reprogrammed 4 | . . 4 . . . . . . . . . . . Reused 3 | . . 3 . . . . . . . . . . . Traps Extracted . | . . . . . . . . . . . . . . Installed 1 | . . . . . . . . . . . 1 . . Triggered 3 | . . 3 . . . . . . . . . . . Most Traps Carried 1 | . . . . . . . . . . . . 1 1 Machines | -11 -10 -9 -8 -7 -7 -7 -7 -7 -7 -5 -5 -5 -5 ---------- Run | Yrd Mat Mat Mat Fac Was Fac Sto Rec Scr Fac Upp Upp War Machines Disabled 38 | . . 2 5 3 . 12 2 . . 14 . . . Max in Single Turn 10 | . . 1 1 1 . 1 . . . 10 . . . Garrison Access 4 | . . . 1 . . 2 . . . 1 . . . Machines Repaired . | . . . . . . . . . . . . . . Machines Dismantled . | . . . . . . . . . . . . . . Machines Sabotaged . | . . . . . . . . . . . . . . Overloaded Fab Kills . | . . . . . . . . . . . . . . Hacking | -11 -10 -9 -8 -7 -7 -7 -7 -7 -7 -5 -5 -5 -5 --------- Run | Yrd Mat Mat Mat Fac Was Fac Sto Rec Scr Fac Upp Upp War Machines Accessed 100 | . 9 15 14 4 . 13 3 17 6 14 . . 5 Terminals 51 | . 7 10 10 3 . 6 3 6 . 6 . . . Fabricators 5 | . . . . 1 . 2 . . . 2 . . . Repair Stations 4 | . . 2 . . . . . . . 2 . . . Recycling Units 17 | . 2 1 2 . . 2 . 9 . 1 . . . Scanalyzers 5 | . . 2 1 . . 1 . . . 1 . . . Garrison Access 5 | . . . 1 . . 2 . . . 2 . . . Total Hacks 291 | . 30 45 44 8 . 33 12 48 23 39 . . 9 Successful 187 | . 14 22 27 5 . 21 6 40 23 20 . . 9 Failed 102 | . 15 22 17 3 . 12 6 8 . 19 . . . Catastrophic 11 | . . 3 1 1 . 1 1 . . 4 . . . Database Lockouts 2 | . 1 1 . . . . . . . . . . . Manual 181 | . 29 26 33 7 . 24 12 32 . 18 . . . Terminals 156 | . 23 24 35 6 . 19 12 23 . 14 . . . Fabricators 14 | . . . . 2 . 4 . . . 8 . . . Repair Stations 10 | . . 4 . . . . . . . 6 . . . Recycling Units 47 | . 7 4 5 . . 5 . 23 . 3 . . . Scanalyzers 22 | . . 13 3 . . 3 . . . 3 . . . Garrison Access 8 | . . . 1 . . 2 . . . 5 . . . Terminal Hacks 71 | . 3 2 11 . . 5 3 13 23 2 . . 9 Record 27 | . . . . . . . . 8 16 . . . 3 Part Schematic 3 | . . . . . . 1 . 2 . . . . . Robot Analysis 12 | . 2 1 2 . . . . 1 6 . . . . Prototype ID Bank 4 | . . . . . . . . . . . . . 4 Open Door 3 | . . . . . . . . . 1 . . . 2 Branch Access Points 4 | . . . 1 . . 1 1 . . 1 . . . Terminal Index 1 | . . . . . . 1 . . . . . . . Alert Level 2 | . . . 1 . . . . . . 1 . . . Unreport Threat 2 | . . . 2 . . . . . . . . . . Locate Traps 7 | . . 1 4 . . 1 1 . . . . . . Recall Reinforcements 1 | . . . 1 . . . . . . . . . . Registered Components 4 | . 1 . . . . 1 1 1 . . . . . Release Object 1 | . . . . . . . . 1 . . . . . Fabricator Hacks 4 | . . . . 1 . 1 . . . 2 . . . Network Status 4 | . . . . 1 . 1 . . . 2 . . . Repair Station Hacks 5 | . . . . . . . . . . 5 . . . Scan Component 3 | . . . . . . . . . . 3 . . . Repair 2 | . . . . . . . . . . 2 . . . Recycling Unit Hacks 21 | . 3 2 3 . . 1 . 11 . 1 . . . Report Inventory 16 | . 2 1 2 . . 1 . 9 . 1 . . . Retrieve Components 5 | . 1 1 1 . . . . 2 . . . . . Scanalyzer 17 | . . 12 3 . . 1 . . . 1 . . . Insert Component 10 | . . 6 2 . . 1 . . . 1 . . . Analyze 7 | . . 6 1 . . . . . . . . . . Garrison Access Hacks 4 | . . . 1 . . 2 . . . 1 . . . Seal Access 4 | . . . 1 . . 2 . . . 1 . . . Unauthorized Hacks 65 | . 8 6 9 4 . 11 3 16 . 8 . . . Terminals 42 | . 6 5 7 3 . 8 3 5 . 5 . . . Assimilate 5 | . 1 2 . . . 2 . . . . . . . Botnet 35 | . 4 3 7 3 . 5 3 5 . 5 . . . Operators 2 | . 1 . . . . 1 . . . . . . . Fabricators 4 | . . . . 1 . 1 . . . 2 . . . Liberate 3 | . . . . 1 . 1 . . . 1 . . . Fabnet 1 | . . . . . . . . . . 1 . . . Repair Stations . | . . . . . . . . . . . . . . Recycling Units 19 | . 2 1 2 . . 2 . 11 . 1 . . . Reject 17 | . 2 1 2 . . 2 . 9 . 1 . . . Recyclers 1 | . . . . . . . . 1 . . . . . Mask 1 | . . . . . . . . 1 . . . . . Scanalyzers . | . . . . . . . . . . . . . . Garrison Access . | . . . . . . . . . . . . . . Data Cores Recovered 3 | . . . . . . 2 1 . . . . . . Used 2 | . . . . . . 2 . . . . . . . Hacking Detections 76 | . 7 14 13 3 . 10 4 11 . 14 . . . Full Trace Events 1 | . . . . . . . 1 . . . . . . Feedback Events . | . . . . . . . . . . . . . . Feedback Blocked . | . . . . . . . . . . . . . . Robot Schematics Acquired . | . . . . . . . . . . . . . . Robots Built . | . . . . . . . . . . . . . . Authchips . | . . . . . . . . . . . . . . Time . | . . . . . . . . . . . . . . Total Robot Build Rating . | . . . . . . . . . . . . . . Part Schematics Acquired 9 | . . 5 1 . . 1 . 2 . . . . . Parts Built . | . . . . . . . . . . . . . . Authchips . | . . . . . . . . . . . . . . Time . | . . . . . . . . . . . . . . Total Part Build Rating . | . . . . . . . . . . . . . . Parts Repaired 2 | . . . . . . . . . . 2 . . . Time 81 | . . . . . . . . . . 81 . . . Parts Recycled . | . . . . . . . . . . . . . . Recycled Matter . | . . . . . . . . . . . . . . Retrieved Matter . | . . . . . . . . . . . . . . Retrieved Components 23 | . 4 10 3 . . . . 6 . . . . . Parts Scanalyzed 9 | . . 6 1 . . 1 . . . 1 . . . Part Schematics Acquired 6 | . . 5 1 . . . . . . . . . . Parts Damaged 1 | . . . . . . . . . . 1 . . . Bothacking | -11 -10 -9 -8 -7 -7 -7 -7 -7 -7 -5 -5 -5 -5 ------------ Run | Yrd Mat Mat Mat Fac Was Fac Sto Rec Scr Fac Upp Upp War Used RIF Installer . | . . . . . . . . . . . . . . Robots Hacked . | . . . . . . . . . . . . . . Non-combat . | . . . . . . . . . . . . . . Combat . | . . . . . . . . . . . . . . Robot Hacks Applied . | . . . . . . . . . . . . . . Relay Couplers Released . | . . . . . . . . . . . . . . Fabnet Peak Effective % . | . . . . . . . . . . . . . . Robots Rewired . | . . . . . . . . . . . . . . Allies Hacked . | . . . . . . . . . . . . . . Hacks Repelled . | . . . . . . . . . . . . . . Allies | -11 -10 -9 -8 -7 -7 -7 -7 -7 -7 -5 -5 -5 -5 -------- Run | Yrd Mat Mat Mat Fac Was Fac Sto Rec Scr Fac Upp Upp War Total Allies 24 | . . . . . 20 1 . . . 3 . . . Largest Group 20 | . . . . . 20 20 12 12 10 10 . . . Highest-Rated Group 562 | . . . . . 562 562 351 346 280 275 . . . Highest-Rated Ally 35 | . . . . . 35 35 35 35 35 35 . . . Total Orders 2 | . . . . . . . . . . 2 . . . EXPLORE 2 | . . . . . . . . . . 2 . . . Ally Attacks 196 | . . . . . . 130 23 14 . 29 . . . Total Damage 5869 | . . . . . . 4285 776 249 . 559 . . . Kills 54 | . . . . . . 38 8 2 . 6 . . . Allies Corrupted 1 | . . . . . . . . . . 1 . . . Allies Melted 1 | . . . . . . . . 1 . . . . . Intel | -11 -10 -9 -8 -7 -7 -7 -7 -7 -7 -5 -5 -5 -5 ------- Run | Yrd Mat Mat Mat Fac Was Fac Sto Rec Scr Fac Upp Upp War Active Infowar (turns) 10290 | . . . 27 935 239 1779 247 1081 2336 2332 . 493 821 Sensors 8682 | . . . . 935 239 1779 247 1081 2336 2065 . . . Terrain 235 | . . . . . . . . . . 235 . . . Traps 27 | . . . 27 . . . . . . . . . . Decoding 1314 | . . . . . . . . . . . . 493 821 Jamming 8077 | . . . . 470 239 1779 247 1081 2321 1940 . . . Robot Analysis Total 12 | . 2 1 2 . . . . 1 6 . . . . Derelict Logs Recovered 3 | . . . . . . . . . . . 1 2 . Drone Launches 2 | . . . . . . . . . . 2 . . . Drone Recoveries 2 | . . . . . . . . . . 2 . . . Exploration | -11 -10 -9 -8 -7 -7 -7 -7 -7 -7 -5 -5 -5 -5 ------------- Run | Yrd Mat Mat Mat Fac Was Fac Sto Rec Scr Fac Upp Upp War Turns Passed 17763 | 133 1079 2426 2564 969 239 1779 247 1081 2336 2816 625 648 821 Spaces Moved 11577 | 79 586 1376 1565 721 187 1420 156 746 1762 1587 406 442 544 Core 11 | 10 . . . . . . . . . . . . 1 Treads 119 | . . . . . . . . . . 119 . . . Legs 1584 | . . . . . . . . . . 193 406 442 543 Wheels 9863 | 69 586 1376 1565 721 187 1420 156 746 1762 1275 . . . Hover . | . . . . . . . . . . . . . . Flight . | . . . . . . . . . . . . . . Fastest Speed 50 | 50 95 110 110 115 115 115 115 130 120 105 120 120 120 Average Speed 123 | 87 140 116 123 115 115 115 128 130 128 133 120 121 121 Slowest Speed 250 | 95 155 155 170 125 115 115 130 130 130 250 120 170 220 Overloaded Moves . | . . . . . . . . . . . . . . Propulsion Burnouts . | . . . . . . . . . . . . . . Robots Hopped . | . . . . . . . . . . . . . . Potential Cave-ins . | . . . . . . . . . . . . . . Cave-ins Triggered . | . . . . . . . . . . . . . . Exploration Rate (%) 60 | 4 85 95 90 13 76 41 32 97 93 33 57 60 77 Regions Visited 13 Branch Regions 6 Pre-discovered Areas 1 | . . . . . . . . . . . . 1 . Known Exits Taken 4 | . . . . . . 1 1 . . 1 . 1 . Unknown Exits Taken 7 | 1 1 1 1 . . . . 1 1 . 1 . . Scrap Searched 11 | . . . . . . . . . 5 . 4 2 . Spaces Dug 11 | . . 4 1 2 . . . . . 1 1 2 . Terrain Destroyed 63 | . . 6 1 2 . . 1 2 . 48 1 2 . Melee 7 | . . . 1 2 . . . . . 1 1 2 . Projectile 16 | . . 6 . . . . 1 2 . 7 . . . AOE 40 | . . . . . . . . . . 40 . . . Terrain Rammed . | . . . . . . . . . . . . . . Walls Destroyed . | . . . . . . . . . . . . . . Machines Disabled . | . . . . . . . . . . . . . . Actions | -11 -10 -9 -8 -7 -7 -7 -7 -7 -7 -5 -5 -5 -5 --------- Run | Yrd Mat Mat Mat Fac Was Fac Sto Rec Scr Fac Upp Upp War Total 13871 | 107 721 1877 1920 819 213 1530 193 833 1843 2074 526 514 701 Wait 1055 | . 34 127 78 43 17 69 27 70 69 261 101 23 136 Move 11565 | 78 585 1375 1564 721 186 1419 155 745 1761 1586 405 441 544 Hop . | . . . . . . . . . . . . . . Pick Up 121 | 7 22 25 30 6 3 1 . . 2 17 2 4 2 Fast Attach 99 | 6 1 10 15 7 1 4 2 3 3 33 2 3 9 Attach 37 | . 2 9 4 1 . . . . . 11 1 3 6 Detach 16 | . 1 1 2 . . . . 2 . 9 . 1 . Swap 79 | . 3 33 20 4 1 3 1 . 1 11 1 1 . Drop 180 | . 11 43 52 11 5 7 3 1 6 35 2 1 3 Fire 567 | 16 62 170 154 24 . 19 5 12 . 105 . . . Melee 49 | . . . 1 2 . . . . . 1 11 34 . Ram . | . . . . . . . . . . . . . . Kick 1 | . . . . . . . . . . . . . 1 Crush . | . . . . . . . . . . . . . . Escape Stasis 13 | . . . . . . 8 . . . 5 . . . Rewire 4 | . . . . . . . . . 1 . . 3 . Trap 85 | . . 84 . . . . . . . . 1 . . Miscellaneous . | . . . . . . . . . . . . . . Route ------- -11/Scrapyard -10/Materials (discovered 3 exits: *Mat / [*Min x2]) -9/Materials (discovered 3 exits: *Mat x2 / [*Min]) -8/Materials (discovered 2 exits: *Fac x2) -7/Factory -7/Waste -7/Factory (discovered 3 exits: *Sto / Low x2) -7/Storage -7/Recycling (discovered 2 exits: *Fac / *Scr) -7/Scraptown (discovered 2 exits: *Fac x2) -5/Factory (discovered 4 exits: *Upp x2 / Ext x2) -5/Upper Caves -5/Upper Caves (discovered 2 exits: [*Fac] / *War) -5/Warlord (discovered 1 exit: [*Pro]) History --------- Turn | Location | Event 14 | -11/Scrapyard | Discovered new exit (range 16) 134 | -11/Scrapyard | Entered Materials 314 | -10/Materials | Build established: Mutant 347 | -10/Materials | Discovered new exit (range 14) 484 | -10/Materials | Central database locked down 546 | -10/Materials | Discovered new exit (range 5) 1059 | -10/Materials | Discovered new exit (range 7) 1213 | -10/Materials | Entered another Materials area 1213 | -9/Materials | Evolved 2 slots: Propulsion x1, Utility x1 1612 | -9/Materials | Lost 6 parts (1p2n1u2w) 1938 | -9/Materials | Build established: Scavenger-Mutant 2330 | -9/Materials | Discovered new exit (range 11) 2698 | -9/Materials | Discovered new exit (range 3) 3539 | -9/Materials | Central database locked down 3610 | -9/Materials | Discovered new exit (range 16) 3639 | -9/Materials | Entered another Materials area 3639 | -8/Materials | Evolved 2 slots: Utility x2 4259 | -8/Materials | Discovered new exit (range 7) 4707 | -8/Materials | Build established: Mutant 5077 | -8/Materials | Discovered new exit (range 12) 6203 | -8/Materials | Entered Factory 6203 | -7/Factory | Evolved 2 slots: Utility x2 6511 | -7/Factory | Build established: Hacker-Mutant 6690 | -7/Factory | Discovered new exit (range 12) 6749 | -7/Factory | Identified exit to Storage 7172 | -7/Factory | Sucked down chute 7172 | -7/Factory | Entered Waste 7173 | -7/Waste | Joined by Warlord forces that had cleared the area 7245 | -7/Waste | Discovered new exit (range 12) 7379 | -7/Waste | Identified exit to Factory 7411 | -7/Waste | Entered Factory 7411 | -7/Factory | Accompanied by 20 allies 7451 | -7/Factory | Lost 3 allies 8240 | -7/Factory | Identified exit to Lower Caves 8275 | -7/Factory | Build established: Mutant 9011 | -7/Factory | First assault squad dispatched 9190 | -7/Factory | Entered Storage 9190 | -7/Storage | Accompanied by 12 allies 9267 | -7/Storage | Met 01-MTF 9356 | -7/Storage | Identified exit to Recycling 9401 | -7/Storage | Used back door to open Recycling access 9437 | -7/Storage | Entered Recycling 9437 | -7/Recycling | Accompanied by 13 allies (01-MTF) 9618 | -7/Recycling | Discovered new exit (range 12) 10278 | -7/Recycling | Scanned before Scraplab entrance 10332 | -7/Recycling | Entered Scraplab 10414 | -7/Recycling | Discovered new exit (range 3) 10518 | -7/Recycling | Entered Scraptown 10518 | -7/Scraptown | Accompanied by 10 allies 10663 | -7/Scraptown | Visited Fellowship of the Rings 10685 | -7/Scraptown | Visited The Evicted 10716 | -7/Scraptown | Visited Red Mages 10750 | -7/Scraptown | Visited Cave Peace 10784 | -7/Scraptown | Visited Assassins FH 10798 | -7/Scraptown | Visited Science Testing Area 10816 | -7/Scraptown | Visited UFD Registry 10824 | -7/Scraptown | Registered with UFD as "Gunthruster" 10902 | -7/Scraptown | Visited Chapter 10 10943 | -7/Scraptown | Visited LU-1G1's Boring Crew 11073 | -7/Scraptown | Visited Sword Containment 11098 | -7/Scraptown | Visited Observation Area 11155 | -7/Scraptown | Visited Research Penetration Think Tank 11189 | -7/Scraptown | Visited Scrapoid Research Area 11429 | -7/Scraptown | Visited Analyses Database 11460 | -7/Scraptown | Visited Scrap Suit Storage 11497 | -7/Scraptown | Visited Curators Association 11975 | -7/Scraptown | Discovered new exit (range 3) 12744 | -7/Scraptown | Met Optimus 12744 | -7/Scraptown | Accepted into 0bPrime 12836 | -7/Scraptown | Discovered new exit (range 5) 12854 | -7/Scraptown | Entered Factory 12854 | -5/Factory | Accompanied by 10 allies 12854 | -5/Factory | Evolved 4 slots: Propulsion x2, Utility x2 13063 | -5/Factory | Repaired Broken Vibroblade 13241 | -5/Factory | Lost 3 allies 13278 | -5/Factory | Build established: Scavenger-Mutant 13606 | -5/Factory | Build established: Mutant 13687 | -5/Factory | Lost 4 allies 13903 | -5/Factory | Repaired Imp. Propulsion Shielding 14168 | -5/Factory | System corruption reached 10% 14804 | -5/Factory | Identified exit to Upper Caves 14804 | -5/Factory | Identified exit to Extension 14943 | -5/Factory | Lost 4 parts (1p2n1u) 15204 | -5/Factory | Lost 3 parts (2n1u) 15254 | -5/Factory | First assault squad dispatched 15360 | -5/Factory | Build established: Hacker-Mutant 15670 | -5/Factory | Entered Upper Caves 15729 | -5/Upper Caves | Learned Factory trap positions 15790 | -5/Upper Caves | Build established: Hacker-Gladiator 16277 | -5/Upper Caves | Spotted B-75 Beast 16281 | -5/Upper Caves | Discovered new exit (range 10) 16295 | -5/Upper Caves | Entered another Upper Caves area 16442 | -5/Upper Caves | Lost 3 parts (1p1n1u) 16491 | -5/Upper Caves | Learned location of Warlord (-5) 16511 | -5/Upper Caves | Attracted the attention of an 0b10 checkpoint 16564 | -5/Upper Caves | Discovered new exit (range 7) 16824 | -5/Upper Caves | Identified exit to Warlord 16943 | -5/Upper Caves | Entered Warlord 16991 | -5/Warlord | System corruption cleaned by Quarantine Array 17190 | -5/Warlord | Build established: Gladiator 17218 | -5/Warlord | Visited the Vortex Lab 17234 | -5/Warlord | Warlord's base attacked by MAIN.C 17237 | -5/Warlord | Found Prototype Piercing Weapon 17239 | -5/Warlord | Found Prototype Piercing Weapon 17394 | -5/Warlord | Rebuked by Warlord 17584 | -5/Warlord | Warlord forces counterattacked 17708 | -5/Warlord | Opened side exit 17741 | -5/Warlord | Spotted B-75 Beast 17742 | -5/Warlord | Discovered new exit (range 11) 17742 | -5/Warlord | Spotted Striker 17742 | -5/Warlord | Spotted B-86 Titan 17749 | -5/Warlord | Core integrity fell below 50% 17761 | -5/Warlord | Identified Vortex Lance (x2) 17763 | -5/Warlord | Core integrity fell below 20% 17764 | -5/Warlord | Destroyed by Striker with Plasma Lance Last Messages --------------- 17751_ Thunder Leg destroyed. 17751_ Knocked back. 17752_ Slug penetrates Earth. 17757_ Thunder Leg destroyed. 17757_ Critical hit (Blast). 17757_ Penetrated by Slug. 17757_ Mak. Salvage Targeting Computer destroyed. 17759_ Kinetic Spear destroyed. 17760_ Knocked back. 17760_ Slug penetrates Striker. 17760_ Penetrated by Slug. 17760_ Thunder Leg destroyed. 17761_ Acquired 5 matter. 17761_ Actuator Array destroyed. 17761_ Identified Vortex Lance. 17762_ Dropped Hcp. Storage Unit. 17763_ Slug penetrates Striker. 17763_ Slug penetrates Wall. 17764_ Critical hit (Meltdown: +310). Map ----- +----------------------------------------------------+ | | | | | | | | | | | ????????????????????????????? | | ????????????????????????????? | | ????????????????????????????? | | ????????????????????????????? | | ##########??????????????????? | | #??????????????????? | | #??????????????????? | | ####### #??????????????????? | | ??????# #??????????????????? | | ??????# #??????????????????? | | ??????# #??????????????????? | | ??????# #??????????????????? | | ?????## ##???????######????? | | ????## #????####; ###??? | | ????# #????# ;; #### | | ????# ##???##;; < ? | | ????# #???# ; = p ?? | | ????# ##??# ;!%= g ###? | | ????##^ #???#; * BBp;# ## | | ?????### ##??#;; %gBB%/]%&# | | ???????## #????#; %p%[!@##? | | ????????## #???##; BB]!K!]#? | | ?????????# =##### BB###!##? | | ?????????# % ###?? | | ?????????##=%### ### ##? | | ??????????##=%! ##?? #? | | ???????????### ##?? #? | | ?????????????# #??% ##? | | ?????????????# ##?= #?? | | ?????????????### #?# #? | | ???????????????## ##? ? | | ###########?????## # % ## | | """"""""""#??????##= #?? | | """"""""""#?####?##% ?? | | ### ### [ ###?? | | + % # #??? | | ^+ # ## #??? | | #### ## ?# #??? | | """"""""""#??## ##### ##?? | | """"""""""#???# # # ##? | | ###########???# ### #? | | ??????????????# ## ##? | | ?????????????? ## #?? | | ????????????? ### #?? | | ????????????? ##?# #?? | +----------------------------------------------------+ Best States ------------- Heat Dissipation 59 Energy Generation 19 Energy Capacity 315 Matter Stores 300 Matter Capacity 300 Sight Range 16 Robot Scan Range 15 Terrain Scan Range 20 Terrain Scan Density 10 Jamming Range 12 Armor Coverage 225 Core Shielding 20 Propulsion Shielding 66 Utility Shielding 66 Melee Speed Boost 20 Evasion (%) 70 Targeting Accuracy 12 Melee Accuracy 8 Target Analysis 6 Recoil Reduction 4 Salvage Targeting 8 Offensive Hacking 12 Defensive Hacking 14 Item Schematics ----------------- Wheel | -9/Materials | Scanalyzed Lgt. Armor Plating | -9/Materials | Scanalyzed Hvy. Assault Rifle | -9/Materials | Scanalyzed Datajack | -9/Materials | Scanalyzed Hcp. Storage Unit | -9/Materials | Scanalyzed Adv. Beam Cannon | -8/Materials | Scanalyzed Weapon Cycler | -7/Factory | Hacked Matter Compressor | -7/Recycling | Hacked Cesium-ion Thruster | -7/Recycling | Hacked Robot Schematics ------------------ None Fabricated ------------ Nothing Repaired ---------- Vibroblade | 18% | -5/Factory | Broken Imp. Propulsion Shielding | 14% | -5/Factory Alien Tech Used ----------------- None Achievements -------------- None Challenges ------------ None Game ------ Seed HackingCloakNukerbomber Manual? 1 Play Time 02:37:55 Cumulative 337.1 hours Start 2025.08.22 @ 18:36:34 End 2025.08.23 @ 02:38:30 Sessions 6 Manual Loads 0 Difficulty Rogue Special Mode None Game No. 287 Rogue 287 Adventurer 0 Explorer 0 Win Type - Total 2 Types 2/0/0/0/0/0/0/0/0/0 Lore% 74 Gallery% 67 Achievement% 53 Wizard Run 0 Options --------- Layout 2 ASCII 1 Keyboard 1 Movement Numpad Keybinds 0 Fullscreen 2 Font 32/TamsynBold Map View 50x44 Zoom Use 0% Tactical HUD 1 Map Filters NONE Filters NONE Steam 1 RUN: d4a907cb-051d-4ad7-aaf6-35a0b7fad513